[Event "Late-Titled-Tuesday-Blitz-May-14-2024"]
[Site "Chess.com"]
[Date "2024.05.14"]
[Round "9"]
[White "Polish_fighter3000"]
[Black "KuzubovYuriy"]
[Result "1-0"]
[WhiteElo "3110"]
[BlackElo "2942"]
[TimeControl "180+1"]
[EndTime "15:44:31 PDT"]
[Termination "Polish_fighter3000 won on time"]

1. Nf3 {[%clk 0:02:42]} 1... d5 {[%clk 0:02:59.6]} 2. c4 {[%clk 0:02:42.6]} 2...
d4 {[%clk 0:02:56.8]} 3. b4 {[%clk 0:02:42.1]} 3... g5 {[%clk 0:02:57]} 4. Qb3
{[%clk 0:02:39.1]} 4... Bg7 {[%clk 0:02:51.6]} 5. Nxg5 {[%clk 0:02:38.8]} 5...
e5 {[%clk 0:02:50.6]} 6. Nh3 {[%clk 0:02:39.1]} 6... Ne7 {[%clk 0:02:42.1]} 7.
g3 {[%clk 0:02:34.8]} 7... a5 {[%clk 0:02:38.4]} 8. b5 {[%clk 0:02:32.2]} 8...
Nd7 {[%clk 0:02:30.2]} 9. Ba3 {[%clk 0:02:29.7]} 9... e4 {[%clk 0:02:14.5]} 10.
Bg2 {[%clk 0:02:23.4]} 10... a4 {[%clk 0:02:13.2]} 11. Qd1 {[%clk 0:02:14.2]}
11... d3 {[%clk 0:01:55.3]} 12. Nc3 {[%clk 0:02:12.6]} 12... Ne5 {[%clk
0:01:54.7]} 13. O-O {[%clk 0:01:54.7]} 13... Nxc4 {[%clk 0:01:46.5]} 14. Bxe7
{[%clk 0:01:51]} 14... Qxe7 {[%clk 0:01:46.5]} 15. exd3 {[%clk 0:01:48.4]} 15...
exd3 {[%clk 0:01:14.5]} 16. Re1 {[%clk 0:01:38.8]} 16... Be6 {[%clk 0:01:15.2]}
17. Bxb7 {[%clk 0:01:09.2]} 17... Rd8 {[%clk 0:01:01.9]} 18. Bc6+ {[%clk
0:01:08.7]} 18... Kf8 {[%clk 0:01:02.3]} 19. Nf4 {[%clk 0:01:08.5]} 19... Bxc3
{[%clk 0:00:53.1]} 20. dxc3 {[%clk 0:01:09.4]} 20... d2 {[%clk 0:00:53.1]} 21.
Nxe6+ {[%clk 0:01:01.2]} 21... fxe6 {[%clk 0:00:53]} 22. Re4 {[%clk 0:01:01.7]}
22... Qc5 {[%clk 0:00:33.3]} 23. Qg4 {[%clk 0:00:41]} 23... Rg8 {[%clk
0:00:17.5]} 24. Qf4+ {[%clk 0:00:32.3]} 24... Kg7 {[%clk 0:00:15.4]} 25. Rd1
{[%clk 0:00:24.3]} 25... Nd6 {[%clk 0:00:05.6]} 26. Rxe6 {[%clk 0:00:22.8]}
26... Rgf8 {[%clk 0:00:04.8]} 27. Qd4+ {[%clk 0:00:02.6]} 27... Qxd4 {[%clk
0:00:04.6]} 28. cxd4 {[%clk 0:00:03.5]} 28... Nc4 {[%clk 0:00:04.5]} 29. d5
{[%clk 0:00:03.6]} 29... Rf3 {[%clk 0:00:03.5]} 30. Kg2 {[%clk 0:00:03.1]} 30...
Rc3 {[%clk 0:00:03.6]} 31. Re2 {[%clk 0:00:03]} 31... Rc2 {[%clk 0:00:03.1]} 32.
a3 {[%clk 0:00:03.2]} 32... Rf8 {[%clk 0:00:02.3]} 33. Re7+ {[%clk 0:00:02.6]}
33... Rf7 {[%clk 0:00:02.3]} 34. d6 {[%clk 0:00:02.6]} 34... cxd6 {[%clk
0:00:01.5]} 35. Rxf7+ {[%clk 0:00:02.1]} 35... Kxf7 {[%clk 0:00:01.8]} 36. Bd5+
{[%clk 0:00:03]} 36... Kf6 {[%clk 0:00:01.9]} 37. Bxc4 {[%clk 0:00:03.6]} 37...
Rxc4 {[%clk 0:00:02.5]} 38. Rxd2 {[%clk 0:00:04.3]} 38... Ke7 {[%clk 0:00:03.1]}
39. b6 {[%clk 0:00:03.9]} 39... Kd7 {[%clk 0:00:03.2]} 40. b7 {[%clk 0:00:03.9]}
40... Kc7 {[%clk 0:00:03.6]} 41. Rxd6 {[%clk 0:00:04.5]} 41... Rc3 {[%clk
0:00:04]} 42. Rb6 {[%clk 0:00:04.4]} 42... Kb8 {[%clk 0:00:04]} 43. h4 {[%clk
0:00:04.9]} 43... Rxa3 {[%clk 0:00:04.4]} 44. Rb4 {[%clk 0:00:05.2]} 44... Ra1
{[%clk 0:00:04.2]} 45. h5 {[%clk 0:00:05.5]} 45... a3 {[%clk 0:00:04.1]} 46. Rb3
{[%clk 0:00:05.2]} 46... a2 {[%clk 0:00:04.2]} 47. Ra3 {[%clk 0:00:05.7]} 47...
Kxb7 {[%clk 0:00:04.3]} 48. g4 {[%clk 0:00:05.8]} 48... Kc6 {[%clk 0:00:04.5]}
49. g5 {[%clk 0:00:05.9]} 49... Kd6 {[%clk 0:00:04.9]} 50. g6 {[%clk 0:00:03.4]}
50... hxg6 {[%clk 0:00:04.8]} 51. h6 {[%clk 0:00:03.7]} 51... Rb1 {[%clk
0:00:04.1]} 52. Rxa2 {[%clk 0:00:04]} 52... Rb5 {[%clk 0:00:04.2]} 53. Ra6+
{[%clk 0:00:03.7]} 53... Ke7 {[%clk 0:00:04]} 54. Rxg6 {[%clk 0:00:04.3]} 54...
Kf7 {[%clk 0:00:03.9]} 55. Ra6 {[%clk 0:00:04.3]} 55... Rg5+ {[%clk 0:00:03.6]}
56. Kh3 {[%clk 0:00:04.9]} 56... Rh5+ {[%clk 0:00:03.3]} 57. Kg4 {[%clk
0:00:05.2]} 57... Rb5 {[%clk 0:00:03.6]} 58. f4 {[%clk 0:00:05.2]} 58... Rc5
{[%clk 0:00:03.7]} 59. Rb6 {[%clk 0:00:05.2]} 59... Ra5 {[%clk 0:00:03.6]} 60.
Rc6 {[%clk 0:00:05.4]} 60... Rb5 {[%clk 0:00:04]} 61. Rd6 {[%clk 0:00:05.6]}
61... Ra5 {[%clk 0:00:04.1]} 62. Rd7+ {[%clk 0:00:03.3]} 62... Kg8 {[%clk
0:00:03]} 63. Rg7+ {[%clk 0:00:03]} 63... Kh8 {[%clk 0:00:03.1]} 64. Rf7 {[%clk
0:00:03.4]} 64... Kg8 {[%clk 0:00:03]} 65. Rf5 {[%clk 0:00:03.5]} 65... Ra6
{[%clk 0:00:03.2]} 66. Kg5 {[%clk 0:00:03.8]} 66... Ra1 {[%clk 0:00:02.9]} 67.
Kg6 {[%clk 0:00:04.3]} 67... Rg1+ {[%clk 0:00:01.7]} 68. Rg5 {[%clk 0:00:04.7]}
68... Ra1 {[%clk 0:00:02.3]} 69. f5 {[%clk 0:00:05.2]} 1-0

[Event "Late-Titled-Tuesday-Blitz-May-14-2024"]
[Site "Chess.com"]
[Date "2024.05.14"]
[Round "9"]
[White "GelmanAlexander"]
[Black "PepeCuenca"]
[Result "1-0"]
[WhiteElo "2697"]
[BlackElo "2806"]
[TimeControl "180+1"]
[EndTime "15:44:31 PDT"]
[Termination "GelmanAlexander won on time"]

1. c4 {[%clk 0:02:55.7]} 1... Nf6 {[%clk 0:02:59.2]} 2. Nf3 {[%clk 0:02:55.9]}
2... g6 {[%clk 0:02:59.5]} 3. d3 {[%clk 0:02:56.2]} 3... Bg7 {[%clk 0:02:59.5]}
4. e3 {[%clk 0:02:56.9]} 4... O-O {[%clk 0:02:57.5]} 5. Be2 {[%clk 0:02:57.6]}
5... c5 {[%clk 0:02:54.1]} 6. a3 {[%clk 0:02:57.5]} 6... d5 {[%clk 0:02:54]} 7.
cxd5 {[%clk 0:02:57.4]} 7... Nxd5 {[%clk 0:02:54.9]} 8. O-O {[%clk 0:02:57.8]}
8... Nc6 {[%clk 0:02:55.3]} 9. Qc2 {[%clk 0:02:58.4]} 9... b6 {[%clk 0:02:51]}
10. Nbd2 {[%clk 0:02:58.8]} 10... Bb7 {[%clk 0:02:46.8]} 11. Ne4 {[%clk
0:02:58.9]} 11... Rc8 {[%clk 0:02:44.2]} 12. Bd2 {[%clk 0:02:59.3]} 12... e5
{[%clk 0:02:38.3]} 13. Rac1 {[%clk 0:02:59.1]} 13... h6 {[%clk 0:02:29.9]} 14.
Qb1 {[%clk 0:02:58.8]} 14... a5 {[%clk 0:02:23.9]} 15. Qc2 {[%clk 0:02:58.3]}
15... Qd7 {[%clk 0:02:19.4]} 16. Rfd1 {[%clk 0:02:57.7]} 16... Kh7 {[%clk
0:02:14.6]} 17. h3 {[%clk 0:02:57.5]} 17... f5 {[%clk 0:02:10.1]} 18. Ng3 {[%clk
0:02:57]} 18... Ba6 {[%clk 0:01:58.8]} 19. Qb3 {[%clk 0:02:55.7]} 19... Rb8
{[%clk 0:01:53.2]} 20. h4 {[%clk 0:02:54.5]} 20... h5 {[%clk 0:01:28.4]} 21. Bc3
{[%clk 0:01:58.3]} 21... Nxc3 {[%clk 0:01:24.4]} 22. bxc3 {[%clk 0:01:55.6]}
22... Bf6 {[%clk 0:01:16.7]} 23. d4 {[%clk 0:01:39.7]} 23... Bxe2 {[%clk
0:01:07.7]} 24. Nxe2 {[%clk 0:01:40.6]} 24... e4 {[%clk 0:00:38.9]} 25. Ng5+
{[%clk 0:01:02.7]} 25... Bxg5 {[%clk 0:00:39]} 26. hxg5 {[%clk 0:01:03.6]} 26...
cxd4 {[%clk 0:00:39.6]} 27. cxd4 {[%clk 0:01:00.4]} 27... Ne7 {[%clk 0:00:37.8]}
28. Nf4 {[%clk 0:00:58.6]} 28... Qd6 {[%clk 0:00:34.7]} 29. d5 {[%clk
0:00:50.5]} 29... Rfc8 {[%clk 0:00:31.3]} 30. Rxc8 {[%clk 0:00:46]} 30... Rxc8
{[%clk 0:00:31.4]} 31. a4 {[%clk 0:00:46.3]} 31... Rc5 {[%clk 0:00:24.5]} 32.
Qb2 {[%clk 0:00:46.4]} 32... Rc8 {[%clk 0:00:10.4]} 33. Ne6 {[%clk 0:00:41.7]}
33... Rg8 {[%clk 0:00:10.6]} 34. Qf6 {[%clk 0:00:42]} 34... Nxd5 {[%clk
0:00:08.9]} 35. Qf7+ {[%clk 0:00:13.3]} 35... Kh8 {[%clk 0:00:09.1]} 36. Nf4
{[%clk 0:00:13.5]} 36... Qe7 {[%clk 0:00:04.9]} 37. Qxd5 {[%clk 0:00:12.3]}
37... Qxg5 {[%clk 0:00:05.2]} 38. Qf7 {[%clk 0:00:11.1]} 38... Qh6 {[%clk
0:00:04.4]} 39. Rd7 {[%clk 0:00:10.2]} 39... h4 {[%clk 0:00:03.7]} 40. Ne6
{[%clk 0:00:07.3]} 40... h3 {[%clk 0:00:02.3]} 41. Ng5 {[%clk 0:00:07.7]} 41...
h2+ {[%clk 0:00:01.7]} 42. Kh1 {[%clk 0:00:07.5]} 42... Rf8 {[%clk 0:00:01.7]}
43. Qh7+ {[%clk 0:00:03.2]} 43... Qxh7 {[%clk 0:00:01.6]} 44. Rxh7+ {[%clk
0:00:04.1]} 44... Kg8 {[%clk 0:00:02.1]} 45. Kxh2 {[%clk 0:00:04.9]} 45... Rc8
{[%clk 0:00:01.8]} 46. Rb7 {[%clk 0:00:05.1]} 46... Rc4 {[%clk 0:00:02.1]} 47.
Rxb6 {[%clk 0:00:04.9]} 47... Kg7 {[%clk 0:00:02.6]} 48. Rb7+ {[%clk 0:00:04.9]}
48... Kf6 {[%clk 0:00:02.5]} 49. Nh7+ {[%clk 0:00:05]} 49... Ke6 {[%clk
0:00:01.9]} 50. Nf8+ {[%clk 0:00:05.5]} 50... Kd5 {[%clk 0:00:01.1]} 51. Nxg6
{[%clk 0:00:05.2]} 51... Rxa4 {[%clk 0:00:01.5]} 52. Ne7+ {[%clk 0:00:05.6]}
52... Kc4 {[%clk 0:00:01.9]} 53. Nxf5 {[%clk 0:00:05.7]} 53... Ra2 {[%clk
0:00:02.4]} 54. Kg3 {[%clk 0:00:05.6]} 54... a4 {[%clk 0:00:02.4]} 55. Nd6+
{[%clk 0:00:05.8]} 55... Kd3 {[%clk 0:00:02.9]} 56. Rb4 {[%clk 0:00:05]} 56...
a3 {[%clk 0:00:03.2]} 57. Rd4+ {[%clk 0:00:05.4]} 57... Kc3 {[%clk 0:00:03.6]}
58. Nxe4+ {[%clk 0:00:05.9]} 58... Kb3 {[%clk 0:00:03.3]} 59. Nc5+ {[%clk
0:00:06.5]} 59... Kc3 {[%clk 0:00:03.8]} 60. Ra4 {[%clk 0:00:06.7]} 60... Ra1
{[%clk 0:00:04]} 61. f4 {[%clk 0:00:07.3]} 61... a2 {[%clk 0:00:03.2]} 62. f5
{[%clk 0:00:07.9]} 62... Kb2 {[%clk 0:00:03]} 63. f6 {[%clk 0:00:08.1]} 63...
Rf1 {[%clk 0:00:03.1]} 64. Ne4 {[%clk 0:00:07.3]} 64... a1=Q {[%clk 0:00:01.2]}
65. Rxa1 {[%clk 0:00:07.4]} 65... Kxa1 {[%clk 0:00:02.1]} 66. Nf2 {[%clk
0:00:07.6]} 66... Re1 {[%clk 0:00:02]} 67. f7 {[%clk 0:00:06.3]} 67... Rxe3+
{[%clk 0:00:02.5]} 68. Kg4 {[%clk 0:00:06.9]} 1-0

[Event "Late-Titled-Tuesday-Blitz-May-14-2024"]
[Site "Chess.com"]
[Date "2024.05.14"]
[Round "9"]
[White "Abund"]
[Black "Gangster-accountant01"]
[Result "1-0"]
[WhiteElo "2780"]
[BlackElo "2587"]
[TimeControl "180+1"]
[EndTime "15:44:32 PDT"]
[Termination "Abund won by resignation"]

1. e4 {[%clk 0:03:00.9]} 1... e5 {[%clk 0:02:59.6]} 2. Nf3 {[%clk 0:03:01.1]}
2... Nc6 {[%clk 0:02:59.3]} 3. Bb5 {[%clk 0:03:01.4]} 3... a6 {[%clk 0:02:57.8]}
4. Ba4 {[%clk 0:03:01.8]} 4... d6 {[%clk 0:02:57.9]} 5. O-O {[%clk 0:02:53.7]}
5... Bd7 {[%clk 0:02:56.6]} 6. c4 {[%clk 0:02:51.3]} 6... g6 {[%clk 0:02:54.9]}
7. d4 {[%clk 0:02:35.9]} 7... exd4 {[%clk 0:02:47.6]} 8. Nxd4 {[%clk 0:02:35.2]}
8... Bg7 {[%clk 0:02:47.5]} 9. Be3 {[%clk 0:02:27.6]} 9... Nge7 {[%clk
0:02:46.1]} 10. Nc3 {[%clk 0:02:25.1]} 10... O-O {[%clk 0:02:37.8]} 11. Bxc6
{[%clk 0:02:19.2]} 11... Nxc6 {[%clk 0:02:38.7]} 12. Re1 {[%clk 0:02:18]} 12...
Re8 {[%clk 0:02:36.8]} 13. Qd2 {[%clk 0:02:10.6]} 13... Ne5 {[%clk 0:02:34.1]}
14. b3 {[%clk 0:02:10.2]} 14... Ng4 {[%clk 0:02:29.3]} 15. Bg5 {[%clk 0:02:08]}
15... f6 {[%clk 0:02:06.2]} 16. Bh4 {[%clk 0:02:01.3]} 16... h5 {[%clk 0:02:02]}
17. h3 {[%clk 0:01:53]} 17... Ne5 {[%clk 0:02:01.4]} 18. Rad1 {[%clk 0:01:46.3]}
18... c5 {[%clk 0:01:39.9]} 19. Nde2 {[%clk 0:01:39.1]} 19... g5 {[%clk
0:01:33.8]} 20. Bg3 {[%clk 0:01:36.4]} 20... Nf7 {[%clk 0:01:27.5]} 21. Bxd6
{[%clk 0:01:31.8]} 21... Nxd6 {[%clk 0:01:11.3]} 22. Qxd6 {[%clk 0:01:32.7]}
22... Bc6 {[%clk 0:01:09.3]} 23. Qxc5 {[%clk 0:01:29.4]} 23... Qe7 {[%clk
0:01:02.6]} 24. Qxe7 {[%clk 0:01:13.6]} 24... Rxe7 {[%clk 0:01:03.5]} 25. Ng3
{[%clk 0:01:05.5]} 25... h4 {[%clk 0:00:59.2]} 26. Nf5 {[%clk 0:01:05.5]} 26...
Re5 {[%clk 0:00:59.3]} 27. Nd5 {[%clk 0:01:00.9]} 27... Rae8 {[%clk 0:00:58.1]}
28. f3 {[%clk 0:00:59.6]} 28... Kf7 {[%clk 0:00:51.1]} 29. Nd6+ {[%clk
0:00:59.5]} 29... Kg6 {[%clk 0:00:51]} 30. Nxe8 {[%clk 0:00:59.7]} 30... Rxe8
{[%clk 0:00:51.9]} 31. Kf1 {[%clk 0:00:54.1]} 31... Bf8 {[%clk 0:00:46.8]} 32.
Rd3 {[%clk 0:00:47]} 32... b5 {[%clk 0:00:45.1]} 33. Ne3 {[%clk 0:00:44.9]}
33... bxc4 {[%clk 0:00:38.1]} 34. Nxc4 {[%clk 0:00:43.5]} 34... Bc5 {[%clk
0:00:35.1]} 35. Red1 {[%clk 0:00:42.1]} 35... Rc8 {[%clk 0:00:32.4]} 36. Rd8
{[%clk 0:00:40.2]} 36... Rc7 {[%clk 0:00:30.2]} 37. Rg8+ {[%clk 0:00:40.1]}
37... Kf7 {[%clk 0:00:22]} 38. Rgd8 {[%clk 0:00:38.5]} 38... Be7 {[%clk
0:00:21.1]} 39. R8d2 {[%clk 0:00:37.9]} 39... Bb5 {[%clk 0:00:20.9]} 40. Rc2
{[%clk 0:00:37.9]} 40... a5 {[%clk 0:00:21.3]} 41. Kg1 {[%clk 0:00:34.7]} 41...
Ke6 {[%clk 0:00:21.2]} 42. Rdc1 {[%clk 0:00:29.2]} 42... Bc5+ {[%clk 0:00:20.2]}
43. Kh1 {[%clk 0:00:28.7]} 43... Bb4 {[%clk 0:00:18.5]} 44. Ne3 {[%clk 0:00:22]}
44... Rxc2 {[%clk 0:00:15.3]} 45. Rxc2 {[%clk 0:00:20.7]} 45... Bd3 {[%clk
0:00:15.2]} 46. Rc8 {[%clk 0:00:20]} 46... Ke5 {[%clk 0:00:15.1]} 47. Rd8 {[%clk
0:00:16.3]} 47... Bb1 {[%clk 0:00:13.4]} 48. Nd5 {[%clk 0:00:10.7]} 48... Bxa2
{[%clk 0:00:12.9]} 49. Nxb4 {[%clk 0:00:10.9]} 49... axb4 {[%clk 0:00:13.4]} 50.
Rd3 {[%clk 0:00:09]} 50... Kf4 {[%clk 0:00:10.4]} 51. Kg1 {[%clk 0:00:08.6]}
51... Kg3 {[%clk 0:00:10.1]} 52. Kf1 {[%clk 0:00:08.9]} 52... Bb1 {[%clk
0:00:09.1]} 53. Rd2 {[%clk 0:00:08.9]} 53... f5 {[%clk 0:00:08.4]} 54. e5 {[%clk
0:00:08.7]} 54... g4 {[%clk 0:00:08.4]} 55. fxg4 {[%clk 0:00:08.5]} 55... fxg4
{[%clk 0:00:08.9]} 56. hxg4 {[%clk 0:00:08.3]} 56... Bg6 {[%clk 0:00:06.2]} 57.
e6 {[%clk 0:00:06.6]} 57... Kxg4 {[%clk 0:00:06.8]} 58. Rf2 {[%clk 0:00:06.3]}
58... Kg5 {[%clk 0:00:04.6]} 59. e7 {[%clk 0:00:06.6]} 59... Be8 {[%clk
0:00:05.2]} 60. Ke1 {[%clk 0:00:06]} 60... Kg6 {[%clk 0:00:04.8]} 61. Rf8 {[%clk
0:00:06.2]} 61... Bb5 {[%clk 0:00:04.8]} 62. Kf2 {[%clk 0:00:06.4]} 62... Be8
{[%clk 0:00:05.7]} 63. Rxe8 {[%clk 0:00:06]} 1-0

[Event "Late-Titled-Tuesday-Blitz-May-14-2024"]
[Site "Chess.com"]
[Date "2024.05.14"]
[Round "9"]
[White "alexrustemov"]
[Black "ansko1999"]
[Result "0-1"]
[WhiteElo "2887"]
[BlackElo "2651"]
[TimeControl "180+1"]
[EndTime "15:44:36 PDT"]
[Termination "ansko1999 won on time"]

1. d4 {[%clk 0:00:47.3]} 1... d5 {[%clk 0:02:58.1]} 2. c4 {[%clk 0:00:48]} 2...
c5 {[%clk 0:02:57.7]} 3. Nc3 {[%clk 0:00:48.9]} 3... Nf6 {[%clk 0:02:42.4]} 4.
cxd5 {[%clk 0:00:46.2]} 4... Nxd5 {[%clk 0:02:40.7]} 5. Nf3 {[%clk 0:00:44.9]}
5... cxd4 {[%clk 0:02:36.4]} 6. Nxd5 {[%clk 0:00:43.8]} 6... Qxd5 {[%clk
0:02:35.8]} 7. Qxd4 {[%clk 0:00:44.5]} 7... Qxd4 {[%clk 0:02:33.2]} 8. Nxd4
{[%clk 0:00:45.4]} 8... a6 {[%clk 0:02:32.7]} 9. g3 {[%clk 0:00:30.9]} 9... e5
{[%clk 0:02:28]} 10. Nb3 {[%clk 0:00:30]} 10... a5 {[%clk 0:02:24.9]} 11. Bg2
{[%clk 0:00:28]} 11... a4 {[%clk 0:02:22.5]} 12. Nd2 {[%clk 0:00:27]} 12... Nc6
{[%clk 0:02:17.1]} 13. Nc4 {[%clk 0:00:22.6]} 13... Bb4+ {[%clk 0:02:11.4]} 14.
Bd2 {[%clk 0:00:21.6]} 14... Bxd2+ {[%clk 0:02:10.8]} 15. Kxd2 {[%clk
0:00:20.4]} 15... Ke7 {[%clk 0:02:06.9]} 16. Bxc6 {[%clk 0:00:18.3]} 16... bxc6
{[%clk 0:02:04.8]} 17. Nxe5 {[%clk 0:00:18.1]} 17... Rd8+ {[%clk 0:01:56.3]} 18.
Nd3 {[%clk 0:00:18]} 18... Ba6 {[%clk 0:01:53.5]} 19. Rhc1 {[%clk 0:00:18.5]}
19... Rd6 {[%clk 0:01:51.1]} 20. Rc3 {[%clk 0:00:16.3]} 20... Rb8 {[%clk
0:01:50.7]} 21. Rb1 {[%clk 0:00:15.9]} 21... c5 {[%clk 0:01:40.1]} 22. Ke1
{[%clk 0:00:12.6]} 22... Bxd3 {[%clk 0:01:39.5]} 23. Rxd3 {[%clk 0:00:11.9]}
23... Rxd3 {[%clk 0:01:29.9]} 24. exd3 {[%clk 0:00:12.8]} 24... Kd6 {[%clk
0:01:28.3]} 25. Kd2 {[%clk 0:00:13.2]} 25... Kd5 {[%clk 0:01:27.8]} 26. Kc3
{[%clk 0:00:13.8]} 26... Re8 {[%clk 0:01:26.5]} 27. Rd1 {[%clk 0:00:13.3]} 27...
Re2 {[%clk 0:01:25.3]} 28. Rd2 {[%clk 0:00:13.6]} 28... Re1 {[%clk 0:01:25.3]}
29. h4 {[%clk 0:00:13.5]} 29... h5 {[%clk 0:01:24.5]} 30. a3 {[%clk 0:00:13.3]}
30... Rc1+ {[%clk 0:01:21]} 31. Rc2 {[%clk 0:00:13.3]} 31... Rd1 {[%clk
0:00:50.8]} 32. Re2 {[%clk 0:00:12.6]} 32... Rc1+ {[%clk 0:00:50.1]} 33. Kd2
{[%clk 0:00:12.6]} 33... Rb1 {[%clk 0:00:48.6]} 34. Kc2 {[%clk 0:00:12.7]} 34...
Rf1 {[%clk 0:00:49]} 35. Kc3 {[%clk 0:00:11]} 35... Rc1+ {[%clk 0:00:48.8]} 36.
Kd2 {[%clk 0:00:11.2]} 36... Rb1 {[%clk 0:00:49]} 37. Kc2 {[%clk 0:00:11]} 37...
Rf1 {[%clk 0:00:48.6]} 38. b3 {[%clk 0:00:10.4]} 38... Ra1 {[%clk 0:00:34.9]}
39. Kb2 {[%clk 0:00:10.1]} 39... Rd1 {[%clk 0:00:35.3]} 40. bxa4 {[%clk
0:00:08.4]} 40... Rxd3 {[%clk 0:00:35.1]} 41. a5 {[%clk 0:00:07.7]} 41... Kc6
{[%clk 0:00:34.3]} 42. Rc2 {[%clk 0:00:05.5]} 42... Kb5 {[%clk 0:00:32.6]} 43.
a6 {[%clk 0:00:05.6]} 43... Rd6 {[%clk 0:00:31.1]} 44. Kb3 {[%clk 0:00:05.5]}
44... Rxa6 {[%clk 0:00:31.2]} 45. Rc3 {[%clk 0:00:04.9]} 45... c4+ {[%clk
0:00:28.7]} 46. Kb2 {[%clk 0:00:04.4]} 46... Re6 {[%clk 0:00:27.8]} 47. Rf3
{[%clk 0:00:04.4]} 47... f6 {[%clk 0:00:22.6]} 48. Kc3 {[%clk 0:00:05.1]} 48...
Re5 {[%clk 0:00:17]} 49. Rf4 {[%clk 0:00:05.1]} 49... Re1 {[%clk 0:00:11.1]} 50.
a4+ {[%clk 0:00:04.4]} 50... Kxa4 {[%clk 0:00:10.6]} 51. Kxc4 {[%clk 0:00:04.8]}
51... Ka5 {[%clk 0:00:09.6]} 52. Kc5 {[%clk 0:00:04.8]} 52... Rd1 {[%clk
0:00:08.3]} 53. Rf5 {[%clk 0:00:03.9]} 53... Ka4 {[%clk 0:00:07.1]} 54. Rxh5
{[%clk 0:00:03.8]} 54... Kb3 {[%clk 0:00:07.7]} 55. Rf5 {[%clk 0:00:03.4]} 55...
Kc3 {[%clk 0:00:07.9]} 56. h5 {[%clk 0:00:03.4]} 56... Rd3 {[%clk 0:00:06.6]}
57. g4 {[%clk 0:00:02.5]} 57... Kd2 {[%clk 0:00:06.1]} 58. f4 {[%clk 0:00:02.4]}
58... Ke3 {[%clk 0:00:06.2]} 59. g5 {[%clk 0:00:02.9]} 59... Ke4 {[%clk
0:00:05.7]} 60. gxf6 {[%clk 0:00:03]} 60... Kxf5 {[%clk 0:00:05.5]} 61. fxg7
{[%clk 0:00:01.4]} 61... Rd8 {[%clk 0:00:05.8]} 62. h6 {[%clk 0:00:02.3]} 62...
Kg6 {[%clk 0:00:06.3]} 63. f5+ {[%clk 0:00:01.2]} 63... Kxh6 {[%clk 0:00:06.8]}
64. f6 {[%clk 0:00:01.5]} 64... Kg6 {[%clk 0:00:07.5]} 65. Kc6 {[%clk
0:00:02.1]} 65... Kxf6 {[%clk 0:00:08]} 66. Kc7 {[%clk 0:00:03]} 66... Rg8
{[%clk 0:00:08.3]} 67. Kd7 {[%clk 0:00:03.1]} 67... Rxg7+ {[%clk 0:00:09.2]} 68.
Kd6 {[%clk 0:00:04]} 68... Re7 {[%clk 0:00:09.9]} 69. Kd5 {[%clk 0:00:04]} 69...
Re6 {[%clk 0:00:10.4]} 70. Kd4 {[%clk 0:00:03.9]} 70... Re5 {[%clk 0:00:10.9]}
71. Kd3 {[%clk 0:00:04.3]} 71... Ke6 {[%clk 0:00:11.5]} 72. Kd4 {[%clk
0:00:05.2]} 72... Kd6 {[%clk 0:00:12.1]} 0-1